fUST/lending_fUST_20250827
["ID","MTS","AMOUNT","RATE_DAILY","PERIOD"]
[381633094,1756299148016,-631.68,0.00026301,2]
[381633095,1756299148026,-628.89,0.00026301,2]
[381633096,1756299148036,-1057.73,0.00026301,2]
[381633097,1756299148046,-520.4,0.00026301,2]
[381633098,1756299148055,-733.13,0.00026301,2]
[381633099,1756299148064,-775.56,0.00026301,2]
[381633100,1756299148074,-480.0,0.00026301,2]
[381633101,1756299148084,-1793.19,0.00026301,2]
[381633102,1756299148094,-1312.96,0.00026301,2]
[381633103,1756299148103,-480.0,0.00026301,2]
[381633104,1756299148112,-594.15,0.00026301,2]
[381633105,1756299148122,-628.83,0.00026301,2]
[381633106,1756299148131,-480.0,0.00026301,2]
[381633107,1756299148141,-480.0,0.00026301,2]
[381633108,1756299148150,-902.71,0.00026301,2]
[381633109,1756299148160,-591.53,0.00026301,2]
[381633110,1756299148170,-480.0,0.00026301,2]
[381633111,1756299148180,-818.78,0.00026301,2]
[381633112,1756299148190,-8495.42,0.00026301,2]
[381633113,1756299148199,-480.0,0.00026301,2]
[381633114,1756299148209,-858.98,0.00026301,2]
[381633115,1756299148220,-746.51,0.00026301,2]
[381633116,1756299148230,-625.32,0.00026301,2]
[381633117,1756299148239,-1365.1,0.00026301,2]
[381633118,1756299148250,-480.0,0.00026301,2]
[381633119,1756299148259,-624.5,0.00026301,2]
[381633120,1756299148268,-1152.04,0.00026301,2]
[381633121,1756299148278,-579.93,0.00026301,2]
[381633122,1756299148288,-599.34,0.00026301,2]
[381633123,1756299148297,-2015.87,0.00026301,2]
[381633124,1756299148307,-810.1,0.00026301,2]
[381633125,1756299148316,-793.74,0.00026301,2]
[381633126,1756299148326,-1099.58,0.00026301,2]
[381633127,1756299148335,-480.0,0.00026301,2]
[381633128,1756299148345,-480.0,0.00026301,2]
[381633129,1756299148355,-736.43,0.00026301,2]
[381633130,1756299148364,-1838.61,0.00026301,2]
[381633131,1756299148374,-898.68,0.00026301,2]
[381633132,1756299148383,-480.0,0.00026301,2]
[381633133,1756299148393,-480.0,0.00026301,2]
[381633134,1756299148403,-916.71,0.00026301,2]
[381633135,1756299148413,-480.0,0.00026301,2]
[381633136,1756299148422,-521.43,0.00026301,2]
[381633137,1756299148432,-480.0,0.00026301,2]
[381633138,1756299148442,-539.62,0.00026301,2]
[381633139,1756299148452,-727.24,0.00026301,2]
[381633140,1756299148463,-480.0,0.00026301,2]
[381633141,1756299148472,-909.76,0.00026301,2]
[381633142,1756299148482,-1026.14,0.00026301,2]
[381633143,1756299148492,-1170.25,0.00026301,2]
[381633144,1756299148502,-1249.43,0.00026301,2]
[381633145,1756299148512,-711.06,0.00026301,2]
[381633146,1756299148522,-480.0,0.00026301,2]
[381633147,1756299148532,-480.0,0.00026301,2]
[381633148,1756299148542,-962.75,0.00026301,2]
[381633149,1756299148552,-670.56,0.00026301,2]
[381633150,1756299148561,-780.75,0.00026301,2]
[381633151,1756299148571,-480.0,0.00026301,2]
[381633152,1756299148581,-633.62,0.00026301,2]
[381633153,1756299148590,-638.03,0.00026301,2]
[381633154,1756299148600,-480.0,0.00026301,2]
[381633155,1756299148610,-886.17,0.00026301,2]
[381633156,1756299148619,-1346.67,0.00026301,2]
[381633157,1756299148629,-677.64,0.00026301,2]
[381633158,1756299148639,-480.0,0.00026301,2]
[381633159,1756299148649,-198.79190786,0.00026301,2]
[381633160,1756299148658,-741.13,0.00026301,2]
[381633161,1756299148668,-952.53,0.00026301,2]
[381633162,1756299148678,-635.74,0.00026301,2]
[381633163,1756299148688,-574.03,0.00026301,2]
[381633164,1756299148698,-508.7,0.00026301,2]
[381633165,1756299148707,-687.48,0.00026301,2]
[381633166,1756299148718,-1268.98,0.00026301,2]
[381633167,1756299148728,-856.71,0.00026301,2]
[381633168,1756299148742,-6495.25,0.00026301,2]
[381633169,1756299148752,-636.86,0.00026301,2]
[381633170,1756299148762,-486.07,0.00026301,2]
[381633171,1756299148772,-1458.92,0.00026301,2]
[381633172,1756299148783,-524.69,0.00026301,2]
[381633173,1756299148792,-905.99,0.00026301,2]
[381633174,1756299148804,-837.39,0.00026301,2]
[381633175,1756299148818,-624.44,0.00026301,2]
[381633176,1756299148828,-1847.92,0.00026301,2]
[381633177,1756299148839,-771.49,0.00026301,2]
[381633178,1756299148849,-1529.63,0.00026301,2]
[381633179,1756299148859,-8247.96,0.00026301,2]
[381633180,1756299148868,-3400.62,0.00026301,2]
[381633181,1756299148878,-583.48,0.00026301,2]
[381633182,1756299148888,-480.0,0.00026301,2]
[381633183,1756299148898,-480.0,0.00026301,2]
[381633184,1756299148908,-352.72304414,0.00026301,2]
[381633185,1756299148917,-1076.84,0.00026301,2]
[381633186,1756299148927,-1635.61,0.00026301,2]
[381633187,1756299148937,-564.33,0.00026301,2]
[381633188,1756299148948,-583.15855222,0.00026301,2]
[381633189,1756299148960,-740.19,0.00026301,2]
[381633190,1756299148969,-1200.96,0.00026301,2]
[381633191,1756299148979,-1559.95,0.00026301,2]
[381633192,1756299148988,-1003.43,0.00026301,2]
[381633193,1756299148998,-655.25,0.00026301,2]
[381633194,1756299149007,-1004.24,0.00026301,2]
[381633195,1756299149017,-626.39,0.00026301,2]
[381633196,1756299149026,-1160.02,0.00026301,2]
[381633197,1756299149036,-504.38,0.00026301,2]
[381633198,1756299149045,-748.48,0.00026301,2]
[381633199,1756299149055,-868.0,0.00026301,2]
[381633200,1756299149064,-632.12,0.00026301,2]
[381633201,1756299149075,-656.18,0.00026301,2]
[381633202,1756299149084,-480.0,0.00026301,2]
[381633203,1756299149095,-480.0,0.00026301,2]
[381633204,1756299149105,-639.39,0.00026301,2]
[381633205,1756299149116,-515.28,0.00026301,2]
[381633206,1756299149125,-860.92,0.00026301,2]
[381633207,1756299149134,-707.77,0.00026301,2]
[381633208,1756299149144,-1553.38,0.00026301,2]
[381633209,1756299149153,-507.0,0.00026301,2]
[381633210,1756299149164,-228.48754054,0.00026301,2]
[381633211,1756299149625,-251.51245946,0.00026301,2]
[381633212,1756299149636,-621.34,0.00026301,2]
[381633213,1756299149645,-480.0,0.00026301,2]
[381633214,1756299149654,-961.78,0.00026301,2]
[381633215,1756299149664,-2093.04,0.00026301,2]
[381633216,1756299149673,-480.0,0.00026301,2]
[381633217,1756299149683,-481.67,0.00026301,2]
[381633218,1756299149693,-861.82,0.00026301,2]
[381633219,1756299149703,-480.0,0.00026301,2]
[381633220,1756299149712,-906.46,0.00026301,2]
[381633221,1756299149722,-500.0,0.00026301,2]
[381633222,1756299149736,-1944.4,0.00026301,2]
[381633223,1756299149745,-480.0,0.00026301,2]
[381633224,1756299149755,-480.0,0.00026301,2]
[381633225,1756299149765,-756.21,0.00026301,2]
[381633226,1756299149775,-691.47,0.00026301,2]
[381633227,1756299149785,-669.41,0.00026301,2]
[381633228,1756299149794,-822.12,0.00026301,2]
[381633229,1756299149804,-664.01,0.00026301,2]
[381633230,1756299149814,-5734.46,0.00026301,2]
[381633231,1756299149823,-480.0,0.00026301,2]
[381633232,1756299149832,-480.0,0.00026301,2]
[381633233,1756299149842,-1472.58,0.00026301,2]
[381633234,1756299149851,-1010.62,0.00026301,2]
[381633235,1756299149860,-746.58,0.00026301,2]
[381633236,1756299149870,-945.67,0.00026301,2]
[381633237,1756299149879,-820.03,0.00026301,2]
[381633238,1756299149888,-2003.06,0.00026301,2]
[381633239,1756299149897,-2419.42,0.00026301,2]
[381633240,1756299149907,-712.33,0.00026301,2]
[381633241,1756299149919,-632.8,0.00026301,2]
[381633242,1756299149928,-1302.43,0.00026301,2]
[381633243,1756299149938,-879.19,0.00026301,2]
[381633244,1756299149947,-626.24,0.00026301,2]
[381633245,1756299149957,-2358.04,0.00026301,2]
[381633246,1756299149968,-571.94,0.00026301,2]
[381633247,1756299149977,-1028.29,0.00026301,2]
[381633248,1756299149988,-480.0,0.00026301,2]
[381633249,1756299149998,-760.04,0.00026301,2]
[381633250,1756299150007,-480.0,0.00026301,2]
[381633251,1756299150016,-534.07,0.00026301,2]
[381633252,1756299150025,-480.0,0.00026301,2]
[381633253,1756299150035,-480.0,0.00026301,2]
[381633254,1756299150044,-773.62,0.00026301,2]
[381633255,1756299150053,-579.37,0.00026301,2]
[381633256,1756299150062,-481.34,0.00026301,2]
[381633257,1756299150071,-689.04,0.00026301,2]
[381633258,1756299150081,-480.0,0.00026301,2]
[381633259,1756299150090,-558.49,0.00026301,2]
[381633260,1756299150099,-402.15511895,0.00026301,2]
[381633261,1756299150108,-3533.68,0.00026301,2]
[381633262,1756299150118,-877.94,0.00026301,2]
[381633263,1756299150127,-657.92,0.00026301,2]
[381633264,1756299150137,-541.91,0.00026301,2]
[381633265,1756299150147,-1306.03,0.00026301,2]
[381633266,1756299150156,-4136.98,0.00026301,2]
[381633267,1756299150166,-480.0,0.00026301,2]
[381633268,1756299150176,-1078.58,0.00026301,2]
[381633269,1756299150185,-680.84,0.00026301,2]
[381633270,1756299150195,-611.17,0.00026301,2]
[381633271,1756299150205,-745.97,0.00026301,2]
[381633272,1756299150217,-483.6,0.00026301,2]
[381633273,1756299150226,-1546.75,0.00026301,2]
[381633274,1756299150235,-1237.23,0.00026301,2]
[381633275,1756299150245,-2253.99,0.00026301,2]
[381633276,1756299150255,-4927.91,0.00026301,2]
[381633277,1756299150264,-480.0,0.00026301,2]
[381633278,1756299150274,-727.85,0.00026301,2]
[381633279,1756299150284,-711.45,0.00026301,2]
[381633280,1756299150294,-681.98,0.00026301,2]
[381633281,1756299150303,-2444.85,0.00026301,2]
[381633282,1756299150313,-1897.45,0.00026301,2]
[381633283,1756299150323,-2263.07,0.00026301,2]
[381633284,1756299150332,-4617.09,0.00026301,2]
[381633285,1756299150342,-867.08,0.00026301,2]
[381633286,1756299150352,-1837.84,0.00026301,2]
[381633287,1756299150361,-1079.7,0.00026301,2]
[381633288,1756299150371,-2907.91,0.00026301,2]
[381633289,1756299150380,-480.0,0.00026301,2]
[381633290,1756299150390,-1354.76,0.00026301,2]
[381633291,1756299150399,-2286.82,0.00026301,2]
[381633292,1756299150409,-576.96,0.00026301,2]
[381633293,1756299150419,-480.0,0.00026301,2]
[381633294,1756299150428,-1707.9,0.00026301,2]
[381633295,1756299150438,-812.92,0.00026301,2]
[381633296,1756299150448,-603.96713537,0.00026301,2]
[381633297,1756299150458,-739.93,0.00026301,2]
[381633298,1756299150469,-1062.67,0.00026301,2]
[381633299,1756299150479,-679.72,0.00026301,2]
[381633300,1756299150489,-3535.34,0.00026301,2]
[381633301,1756299150499,-550.73,0.00026301,2]
[381633302,1756299150508,-577.42,0.00026301,2]
[381633303,1756299150518,-695.89,0.00026301,2]
[381633304,1756299150528,-680.83,0.00026301,2]
[381633305,1756299150538,-600.93,0.00026301,2]
[381633306,1756299150548,-829.46,0.00026301,2]
[381633307,1756299150557,-1631.46,0.00026301,2]
[381633308,1756299150567,-1995.59,0.00026301,2]
[381633309,1756299150576,-1590.45,0.00026301,2]
[381633310,1756299150586,-539.05,0.00026301,2]
[381633311,1756299150596,-712.28,0.00026301,2]
[381633312,1756299150606,-638.72,0.00026301,2]
[381633313,1756299150617,-266.71,0.00026301,2]
[381633314,1756299150626,-480.0,0.00026301,2]
[381633315,1756299150635,-755.02,0.00026301,2]
[381633316,1756299150645,-480.0,0.00026301,2]
[381633317,1756299150655,-789.18,0.00026301,2]
[381633318,1756299150666,-3199.34,0.00026301,2]
[381633319,1756299150675,-480.0,0.00026301,2]
[381633321,1756299150685,-685.55,0.00026301,2]
[381633322,1756299150694,-2224.28,0.00026301,2]
[381633323,1756299150704,-622.18,0.00026301,2]
[381633324,1756299150713,-1015.89,0.00026301,2]
[381633325,1756299150724,-1801.64,0.00026301,2]
[381633326,1756299150736,-678.47,0.00026301,2]
[381633327,1756299150746,-631.08,0.00026301,2]
[381633328,1756299150755,-698.69,0.00026301,2]
[381633329,1756299150765,-2888.9,0.00026301,2]
[381633330,1756299150774,-908.23,0.00026301,2]
[381633331,1756299150786,-480.0,0.00026301,2]
[381633332,1756299150796,-901.06,0.00026301,2]
[381633333,1756299150806,-480.0,0.00026301,2]
[381633334,1756299150817,-480.0,0.00026301,2]
[381633335,1756299150827,-1290.3,0.00026301,2]
[381633336,1756299150836,-480.0,0.00026301,2]
[381633337,1756299150847,-1110.35,0.00026301,2]
[381633338,1756299150856,-911.51,0.00026301,2]
[381633339,1756299150866,-711.28,0.00026301,2]
[381633340,1756299150876,-450.0,0.00026301,2]
[381633341,1756299150886,-206.87104197,0.00026301,2]
[381633342,1756299150896,-168.0,0.00026341,2]
[381633343,1756299150905,-76347.57,0.000264,7]
[381633344,1756299150914,-485.0,0.00026441,2]
[381633345,1756299150924,-3292.0,0.00026448,2]
[381633346,1756299150934,-823.0,0.00026448,2]
[381633347,1756299150943,-168.0,0.00026469,2]
[381633348,1756299150953,-168.0,0.0002647,2]
[381633349,1756299150963,-174.09210873,0.00026475,2]
[381633350,1756299150974,-160.0,0.000265,3]
[381633351,1756299150984,-1015.0,0.00026572,2]
[381633352,1756299150993,-480.0,0.00026575,2]
[381633353,1756299151003,-480.0,0.00026575,2]
[381633354,1756299151013,-493.86,0.00026575,2]
[381633355,1756299151023,-480.0,0.00026575,2]
[381633356,1756299151032,-562.7,0.00026575,2]
[381633357,1756299151042,-524.95,0.00026575,2]
[381633358,1756299151052,-480.0,0.00026575,2]
[381633359,1756299151062,-538.52,0.00026575,2]
[381633360,1756299151071,-550.62,0.00026575,2]
[381633361,1756299151082,-480.0,0.00026575,2]
[381633362,1756299151092,-576.16,0.00026575,2]
[381633363,1756299151101,-662.66,0.00026575,2]
[381633364,1756299151111,-582.51,0.00026575,2]
[381633365,1756299151120,-480.0,0.00026575,2]
[381633366,1756299151130,-606.2,0.00026575,2]
[381633367,1756299151140,-706.9,0.00026575,2]
[381633368,1756299151149,-882.63,0.00026575,2]
[381633369,1756299151371,-714.33,0.00026575,2]
[381633370,1756299151381,-612.47,0.00026575,2]
[381633371,1756299151391,-480.0,0.00026575,2]
[381633372,1756299151402,-494.53604466,0.00026575,2]
[381633373,1756299151412,-480.0,0.00026575,2]
[381633374,1756299151422,-512.19,0.00026575,2]
[381633375,1756299151432,-509.06,0.00026575,2]
[381633376,1756299151442,-612.82,0.00026575,2]
[381633377,1756299151452,-627.14,0.00026575,2]
[381633378,1756299151461,-624.19,0.00026575,2]
[381633379,1756299151472,-481.22,0.00026575,2]
[381633380,1756299151482,-528.91,0.00026575,2]
[381633381,1756299151492,-608.41,0.00026575,2]
[381633382,1756299151501,-547.44,0.00026575,2]
[381633383,1756299151511,-522.91,0.00026575,2]
[381633384,1756299151520,-967.44,0.00026575,2]
[381633385,1756299151530,-624.58,0.00026575,2]
[381633386,1756299151539,-486.45,0.00026575,2]
[381633387,1756299151549,-480.0,0.00026575,2]
[381633388,1756299151559,-480.0,0.00026575,2]
[381633389,1756299151568,-1513.62,0.00026575,2]
[381633390,1756299151579,-740.6,0.00026575,2]
[381633391,1756299151589,-561.33,0.00026575,2]
[381633392,1756299151599,-1456.95,0.00026575,2]
[381633393,1756299151609,-1610.42,0.00026575,2]
[381633394,1756299151619,-507.15,0.00026575,2]
[381633395,1756299151629,-628.11,0.00026575,2]
[381633396,1756299151639,-569.45,0.00026575,2]
[381633397,1756299151649,-480.0,0.00026575,2]
[381633398,1756299151659,-1196.37,0.00026575,2]
[381633399,1756299151669,-1184.81,0.00026575,2]
[381633400,1756299151679,-480.0,0.00026575,2]
[381633401,1756299151689,-595.51,0.00026575,2]
[381633402,1756299151698,-974.71,0.00026575,2]
[381633403,1756299151707,-680.85,0.00026575,2]
[381633404,1756299151718,-642.37,0.00026575,2]
[381633405,1756299151728,-480.0,0.00026575,2]
[381633406,1756299151747,-620.04,0.00026575,2]
[381633407,1756299151761,-1799.04,0.00026575,2]
[381633408,1756299151770,-888.29,0.00026575,2]
[381633409,1756299151780,-511.13,0.00026575,2]
[381633410,1756299151790,-615.79,0.00026575,2]
[381633411,1756299151799,-837.84,0.00026575,2]
[381633412,1756299151809,-1249.5,0.00026575,2]
[381633413,1756299151819,-488.18,0.00026575,2]
[381633414,1756299151828,-841.78,0.00026575,2]
[381633415,1756299151838,-432.45736027,0.00026575,2]
[381633416,1756299151848,-818.54,0.00026575,2]
[381633417,1756299151858,-634.58,0.00026575,2]
[381633418,1756299151868,-480.0,0.00026575,2]
[381633419,1756299151878,-1132.23,0.00026575,2]
[381633420,1756299151888,-480.0,0.00026575,2]
[381633421,1756299151897,-630.18,0.00026575,2]
[381633422,1756299151907,-1020.11,0.00026575,2]
[381633423,1756299151916,-987.21,0.00026575,2]
[381633424,1756299151925,-480.0,0.00026575,2]
[381633425,1756299151935,-480.0,0.00026575,2]
[381633426,1756299151945,-561.06,0.00026575,2]
[381633427,1756299151955,-544.78,0.00026575,2]
[381633428,1756299151965,-655.34,0.00026575,2]
[381633429,1756299151976,-660.63,0.00026575,2]
[381633430,1756299151985,-935.85,0.00026575,2]
[381633431,1756299151994,-1338.48,0.00026575,2]
[381633432,1756299152004,-651.24,0.00026575,2]
[381633433,1756299152014,-480.0,0.00026575,2]
[381633434,1756299152024,-761.3,0.00026575,2]
[381633435,1756299152033,-631.68,0.00026575,2]
[381633436,1756299152043,-1057.73,0.00026575,2]
[381633437,1756299152052,-520.4,0.00026575,2]
[381633438,1756299152062,-628.89,0.00026575,2]
[381633439,1756299152071,-733.13,0.00026575,2]
[381633440,1756299152081,-775.56,0.00026575,2]
[381633441,1756299152090,-480.0,0.00026575,2]
[381633442,1756299152100,-1793.19,0.00026575,2]
[381633443,1756299152109,-1312.96,0.00026575,2]
[381633444,1756299152119,-480.0,0.00026575,2]
[381633445,1756299152129,-594.15,0.00026575,2]
[381633446,1756299152138,-628.83,0.00026575,2]
[381633447,1756299152148,-480.0,0.00026575,2]
[381633448,1756299152158,-480.0,0.00026575,2]
[381633449,1756299152167,-902.71,0.00026575,2]
[381633450,1756299152177,-591.53,0.00026575,2]
[381633451,1756299152187,-480.0,0.00026575,2]
[381633452,1756299152196,-818.78,0.00026575,2]
[381633453,1756299152206,-8495.42,0.00026575,2]
[381633454,1756299152216,-480.0,0.00026575,2]
[381633455,1756299152226,-858.98,0.00026575,2]
[381633456,1756299152235,-746.51,0.00026575,2]
[381633457,1756299152244,-625.32,0.00026575,2]
[381633458,1756299152254,-1365.1,0.00026575,2]
[381633459,1756299152264,-480.0,0.00026575,2]
[381633460,1756299152274,-624.5,0.00026575,2]
[381633461,1756299152284,-1152.04,0.00026575,2]
[381633462,1756299152294,-599.34,0.00026575,2]
[381633463,1756299152304,-2015.87,0.00026575,2]
[381633464,1756299152314,-579.93,0.00026575,2]
[381633465,1756299152323,-810.1,0.00026575,2]
[381633466,1756299152333,-793.74,0.00026575,2]
[381633467,1756299152343,-480.0,0.00026575,2]
[381633468,1756299152353,-1099.58,0.00026575,2]
[381633469,1756299152363,-480.0,0.00026575,2]
[381633470,1756299152373,-736.43,0.00026575,2]
[381633471,1756299152383,-1838.61,0.00026575,2]
[381633472,1756299152392,-898.68,0.00026575,2]
[381633473,1756299152403,-480.0,0.00026575,2]
[381633474,1756299152413,-480.0,0.00026575,2]
[381633475,1756299152423,-916.71,0.00026575,2]
[381633476,1756299152433,-480.0,0.00026575,2]
[381633477,1756299152443,-521.43,0.00026575,2]
[381633478,1756299152454,-480.0,0.00026575,2]
[381633479,1756299152464,-539.62,0.00026575,2]
[381633480,1756299152475,-727.24,0.00026575,2]
[381633481,1756299152485,-480.0,0.00026575,2]
[381633482,1756299152495,-909.76,0.00026575,2]
[381633483,1756299152505,-1026.14,0.00026575,2]
[381633484,1756299152516,-1170.25,0.00026575,2]
[381633485,1756299152526,-1249.43,0.00026575,2]
[381633486,1756299152536,-711.06,0.00026575,2]
[381633487,1756299152547,-481.01,0.00026575,2]
[381633488,1756299152557,-480.0,0.00026575,2]
[381633489,1756299152567,-962.75,0.00026575,2]
[381633490,1756299152577,-670.56,0.00026575,2]
[381633491,1756299152587,-780.75,0.00026575,2]
[381633492,1756299152597,-480.0,0.00026575,2]
[381633493,1756299152607,-633.62,0.00026575,2]
[381633494,1756299152623,-638.03,0.00026575,2]
[381633495,1756299152641,-575.15802201,0.00026575,2]
[381633496,1756299152652,-886.17,0.00026575,2]
[381633497,1756299152661,-1346.67,0.00026575,2]
[381633498,1756299152671,-677.64,0.00026575,2]
[381633499,1756299152681,-480.0,0.00026575,2]
[381633500,1756299152691,-741.13,0.00026575,2]
[381633501,1756299152701,-952.53,0.00026575,2]
[381633502,1756299152712,-635.74,0.00026575,2]
[381633503,1756299152723,-574.03,0.00026575,2]
[381633504,1756299152735,-508.7,0.00026575,2]
[381633505,1756299152745,-687.48,0.00026575,2]
[381633506,1756299152755,-1268.98,0.00026575,2]
[381633507,1756299152764,-856.71,0.00026575,2]
[381633508,1756299152774,-6495.25,0.00026575,2]
[381633509,1756299152783,-636.86,0.00026575,2]
[381633510,1756299152793,-486.07,0.00026575,2]
[381633511,1756299152803,-1458.92,0.00026575,2]
[381633512,1756299152813,-524.69,0.00026575,2]
[381633513,1756299152823,-905.99,0.00026575,2]
[381633514,1756299152832,-837.39,0.00026575,2]
[381633515,1756299152843,-624.44,0.00026575,2]
[381633516,1756299152862,-771.49,0.00026575,2]
[381633517,1756299152875,-1847.92,0.00026575,2]
[381633518,1756299152885,-1529.63,0.00026575,2]
[381633519,1756299152896,-3400.62,0.00026575,2]
[381633520,1756299152906,-8247.96,0.00026575,2]
[381633521,1756299152916,-583.48,0.00026575,2]
[381633522,1756299152927,-480.0,0.00026575,2]
[381633523,1756299152938,-546.1,0.00026575,2]
[381633524,1756299152948,-1076.84,0.00026575,2]
[381633525,1756299152959,-1635.61,0.00026575,2]
[381633526,1756299152970,-564.33,0.00026575,2]
[381633527,1756299152980,-1200.96,0.00026575,2]
[381633528,1756299152991,-740.19,0.00026575,2]
[381633529,1756299153001,-1559.95,0.00026575,2]
[381633530,1756299153012,-1003.43,0.00026575,2]
[381633531,1756299153023,-655.25,0.00026575,2]
[381633532,1756299153034,-626.39,0.00026575,2]
[381633533,1756299153045,-1004.24,0.00026575,2]
[381633534,1756299153057,-1160.02,0.00026575,2]
[381633535,1756299153068,-504.38,0.00026575,2]
[381633536,1756299153079,-748.48,0.00026575,2]
[381633537,1756299153090,-868.0,0.00026575,2]
[381633538,1756299153101,-632.12,0.00026575,2]
[381633539,1756299153112,-656.18,0.00026575,2]
[381633540,1756299153123,-480.0,0.00026575,2]
[381633541,1756299153135,-480.0,0.00026575,2]
[381633542,1756299153146,-639.39,0.00026575,2]
[381633543,1756299153156,-515.28,0.00026575,2]
[381633544,1756299153167,-860.92,0.00026575,2]
[381633545,1756299153177,-707.77,0.00026575,2]
[381633546,1756299153196,-1553.38,0.00026575,2]
[381633547,1756299153207,-507.0,0.00026575,2]
[381633548,1756299153217,-480.0,0.00026575,2]
[381633549,1756299153231,-621.34,0.00026575,2]
[381633550,1756299153241,-480.0,0.00026575,2]
[381633551,1756299153252,-961.78,0.00026575,2]
[381633552,1756299153263,-2093.04,0.00026575,2]
[381633553,1756299153273,-480.0,0.00026575,2]
[381633554,1756299153285,-481.67,0.00026575,2]
[381633555,1756299153296,-906.46,0.00026575,2]
[381633556,1756299153307,-480.0,0.00026575,2]
[381633557,1756299153318,-861.82,0.00026575,2]
[381633558,1756299153328,-500.0,0.00026575,2]
[381633559,1756299153339,-1944.4,0.00026575,2]
[381633560,1756299153349,-480.0,0.00026575,2]
[381633561,1756299153359,-303.50388575,0.00026575,2]
[381633562,1756299153370,-756.21,0.00026575,2]
[381633563,1756299153380,-691.47,0.00026575,2]
[381633564,1756299153391,-669.41,0.00026575,2]
[381633565,1756299153401,-822.12,0.00026575,2]
[381633566,1756299153412,-664.01,0.00026575,2]
[381633567,1756299153423,-5734.46,0.00026575,2]
[381633568,1756299153434,-480.0,0.00026575,2]
[381633569,1756299153444,-480.0,0.00026575,2]
[381633570,1756299153455,-1472.58,0.00026575,2]
[381633571,1756299153466,-1010.62,0.00026575,2]
[381633572,1756299153479,-746.58,0.00026575,2]
[381633573,1756299153489,-820.03,0.00026575,2]
[381633574,1756299153499,-2003.06,0.00026575,2]
[381633575,1756299153509,-2419.42,0.00026575,2]
[381633576,1756299153521,-712.33,0.00026575,2]
[381633577,1756299153531,-632.8,0.00026575,2]
[381633578,1756299153542,-1302.43,0.00026575,2]
[381633579,1756299153553,-879.19,0.00026575,2]
[381633580,1756299153564,-626.24,0.00026575,2]
[381633581,1756299153574,-2358.04,0.00026575,2]
[381633582,1756299153585,-571.94,0.00026575,2]
[381633583,1756299153595,-1028.29,0.00026575,2]
[381633584,1756299153605,-501.49786935,0.00026575,2]
[381633585,1756299153616,-760.04,0.00026575,2]
[381633586,1756299153626,-480.0,0.00026575,2]
[381633587,1756299153635,-534.07,0.00026575,2]
[381633588,1756299153646,-480.0,0.00026575,2]
[381633589,1756299153656,-480.0,0.00026575,2]
[381633590,1756299153665,-773.62,0.00026575,2]
[381633591,1756299153675,-579.37,0.00026575,2]
[381633592,1756299153685,-481.34,0.00026575,2]
[381633593,1756299153695,-480.0,0.00026575,2]
[381633594,1756299153706,-689.04,0.00026575,2]